bitfinex/quotes_ETHUSD_20240820
["timestamp","ask_amount","ask_price","bid_price","bid_amount"]
[1724162634514,3.78123,2644.7,2644.2,19.54]
[1724162634988,3.78106,2644.8,2644.2,23.32172]
[1724162635176,3.78139,2644.6,2644.2,19.54]
[1724162635378,3.78151,2644.5,2644.2,19.54]
[1724162636017,7.56304,2644.5,2644.2,19.54]
[1724162636319,3.78151,2644.5,2644.2,19.54]
[1724162636923,3.78124,2644.7,2644.2,19.54]
[1724162637230,3.78116,2644.7,2644.2,26.00277]
[1724162637428,3.78106,2644.8,2644.3,3.7817]
[1724162637601,3.78106,2644.8,2644.2,26.00277]
[1724162637783,3.78106,2644.8,2644.3,3.78163]
[1724162637986,3.78106,2644.8,2644.2,29.78455]
[1724162638191,3.78106,2644.8,2644.3,3.78164]
[1724162638589,3.78123,2644.7,2644.2,26.00277]
[1724162638790,3.78123,2644.7,2644.2,23.32177]
[1724162639211,3.78123,2644.7,2644.3,3.78171]
[1724162639384,3.781,2644.8,2644.3,3.78171]
[1724162639590,3.781,2644.8,2644.3,3.78163]
[1724162640085,9.05339,2645.0,2644.0,7.27]
[1724162640086,3.78079,2645.0,2644.5,3.78136]
[1724162640316,3.78079,2645.0,2644.6,3.78129]
[1724162640529,3.78079,2645.0,2644.4,3.78146]
[1724162640686,3.78087,2644.9,2644.4,3.78146]
[1724162640891,3.78101,2644.8,2644.4,3.78146]
[1724162641091,3.78101,2644.8,2644.3,3.78171]
[1724162641420,3.78101,2644.8,2644.0,19.54]
[1724162641421,3.78166,2644.4,2644.0,19.54]
[1724162641761,2.4752,2644.8,2643.5,9.7049]
[1724162641947,3.78156,2644.5,2643.5,9.7049]
[1724162642093,6.78124,2644.7,2644.1,3.78198]
[1724162642094,3.78124,2644.7,2644.1,3.78198]
[1724162642424,3.78152,2644.5,2644.0,3.78202]
[1724162642635,3.78166,2644.4,2643.8,3.78233]
[1724162642841,3.78153,2644.5,2643.8,3.78233]
[1724162643008,3.78214,2644.1,2643.4,3.78288]
[1724162643343,3.78208,2644.1,2643.4,3.78288]
[1724162643551,3.78208,2644.1,2643.6,3.78271]
[1724162643836,3.78224,2644.0,2643.4,3.78288]
[1724162644004,3.78208,2644.1,2643.4,0.610738]
[1724162644362,3.78201,2644.1,2643.2,2.3245]
[1724162644490,3.78186,2644.2,2643.7,3.78257]
[1724162644833,8.79,2644.8,2643.7,3.78257]
[1724162644834,3.78153,2644.5,2643.8,2.3285]
[1724162645042,3.78165,2644.4,2643.9,3.78227]
[1724162645259,3.78122,2644.7,2643.9,3.78227]
[1724162645390,8.9100903,2644.7,2644.0,3.78213]
[1724162645599,3.78122,2644.7,2644.0,3.78204]
[1724162645800,3.214083,2644.9,2643.8,2.3285]
[1724162645801,3.78179,2644.3,2643.8,6.11084]
[1724162646397,3.78179,2644.3,2643.8,2.3285]
[1724162646604,2.4834,2644.5,2643.4,25.78344]
[1724162646811,3.78223,2644.0,2643.5,3.78283]
[1724162647059,7.56452,2644.0,2643.5,3.78283]
[1724162647358,3.78222,2644.0,2643.4,6.24349]
[1724162647502,3.78199,2644.2,2643.5,3.78274]
[1724162647715,3.78211,2644.1,2643.4,6.24349]
[1724162647935,7.56395,2644.2,2643.6,3.7827]
[1724162648255,3.78167,2644.4,2643.6,3.7827]
[1724162648400,3.78218,2644.0,2643.5,3.78283]
[1724162648912,3.78229,2643.9,2643.4,6.24343]
[1724162649252,7.56416,2644.1,2643.4,10.02636]
[1724162649455,3.78149,2644.5,2644.0,3.78203]
[1724162649609,3.78149,2644.5,2643.8,7.56468]
[1724162649809,3.78159,2644.4,2643.9,3.78226]
[1724162650146,3.78159,2644.4,2643.8,3.78231]
[1724162650354,2.3741,2644.8,2644.1,3.78196]
[1724162650355,3.78122,2644.7,2644.1,3.78196]
[1724162650863,2.3741,2644.8,2643.9,2.4386]
[1724162651148,2.3741,2644.8,2643.4,1.002662]
[1724162651149,3.78208,2644.1,2643.6,3.78266]
[1724162651463,3.78194,2644.2,2643.7,3.78254]
[1724162651610,3.78162,2644.4,2643.7,3.78248]
[1724162651863,3.78142,2644.6,2643.9,3.78218]
[1724162652007,3.78124,2644.7,2644.1,3.78189]
[1724162652251,3.78124,2644.7,2644.2,3.78184]
[1724162652441,2.3741,2644.8,2644.3,3.78171]
[1724162652658,3.78092,2644.9,2644.3,3.78171]
[1724162652809,3.78092,2644.9,2644.0,2.3126]
[1724162652810,6.19205,2645.1,2644.5,3.78134]
[1724162653184,6.19205,2645.1,2644.4,0.378171]
[1724162653460,3.78065,2645.1,2644.6,3.78121]
[1724162653608,3.9063579,2645.2,2644.6,3.78121]
[1724162653808,3.78059,2645.1,2644.6,3.78121]
[1724162654065,0.1259179,2645.2,2644.6,3.78121]
[1724162654221,0.1259179,2645.2,2644.8,3.78088]
[1724162655039,0.1259179,2645.2,2645.0,3.78059]
[1724162655565,0.1259179,2645.2,2645.1,0.07560374]
[1724162655767,0.1259179,2645.2,2645.1,9.94224374]
[1724162655935,0.1259179,2645.2,2645.1,6.08607]
[1724162656132,0.1259179,2645.2,2645.1,7.072758]
[1724162657019,0.1259179,2645.2,2645.1,7.14835742]
[1724162657215,0.1259179,2645.2,2645.1,10.92892742]
[1724162657477,0.1259179,2645.2,2645.1,10.853328]
[1724162657773,0.01036311,2645.2,2645.1,33.943328]
[1724162660464,0.01036311,2645.2,2645.1,37.723898]
[1724162660823,0.01036311,2645.2,2645.1,18.183898]
[1724162661030,0.000853,2645.2,2645.1,14.403328]
[1724162662342,0.000853,2645.2,2644.7,0.378121]
[1724162662573,3.78064,2645.1,2644.5,3.78142]
[1724162662774,3.78064,2645.1,2644.6,3.78126]
[1724162663261,3.78064,2645.1,2644.5,3.78142]
[1724162663436,0.000853,2645.2,2644.3,3.78164]
[1724162663625,3.78072,2645.0,2644.3,4.7861]
[1724162664026,3.78072,2645.0,2644.4,19.54]
[1724162664287,3.78101,2644.8,2644.4,19.54]
[1724162664964,3.78101,2644.8,2644.2,19.54]
[1724162664965,3.78129,2644.6,2644.2,19.54]
[1724162665161,3.78143,2644.5,2644.2,19.54]
[1724162665486,1.001706,2644.6,2644.0,19.54]
[1724162665487,6.08964,2644.2,2644.0,19.54]
[1724162666116,9.87161,2644.2,2644.0,19.54]
[1724162666259,7.564,2644.1,2644.0,19.54]
[1724162666452,2.3077,2644.2,2643.5,7.27]
[1724162666453,3.78258,2643.7,2643.5,7.27]
[1724162666803,2.3077,2644.2,2643.6,19.54]
[1724162667014,2.3077,2644.2,2642.8,12.37]
[1724162667015,3.78326,2643.3,2642.6,3.78404]
[1724162667360,2.3264,2643.6,2642.6,3.78404]
[1724162667361,3.7833,2643.2,2642.6,3.78404]
[1724162667675,3.78308,2643.4,2642.6,3.78404]
[1724162667874,3.7829,2643.5,2642.6,3.78404]
[1724162668059,3.78329,2643.2,2642.6,3.78404]
[1724162668262,3.783,2643.4,2642.7,4.162354]
[1724162668459,3.78317,2643.3,2642.7,0.378404]
[1724162668898,3.783,2643.4,2642.7,0.378404]
[1724162669160,3.78287,2643.5,2642.9,3.78361]
[1724162669367,3.78301,2643.4,2642.7,0.378404]
[1724162669571,3.78301,2643.4,2642.8,0.4162504]
[1724162669796,3.78301,2643.4,2642.8,4.2001004]
[1724162670015,6.10914,2643.6,2642.8,4.2001004]
[1724162670386,3.78288,2643.5,2642.8,4.2001004]
[1724162670589,3.78288,2643.5,2642.9,0.79841004]
[1724162671076,3.78327,2643.3,2642.8,0.4162504]
[1724162671414,3.7833,2643.2,2642.5,3.78424]
[1724162671644,3.7833,2643.2,2642.6,0.55]
[1724162671831,3.78304,2643.4,2642.7,3.78398]
[1724162672123,3.78333,2643.2,2642.5,3.78424]
[1724162672325,3.78333,2643.2,2642.6,0.378424]
[1724162672676,3.78333,2643.2,2642.7,19.54]
[1724162673534,3.78385,2642.9,2642.7,19.54]
[1724162673823,3.78386,2642.8,2642.7,19.54]
[1724162674032,3.78385,2642.9,2642.7,19.54]
[1724162675037,3.78385,2642.9,2642.7,21.494]
[1724162675240,3.78329,2643.2,2642.7,21.494]
[1724162675474,3.78329,2643.2,2642.7,19.54]
[1724162675737,3.78324,2643.3,2642.7,19.54]
[1724162675939,3.78351,2643.1,2642.7,19.54]
[1724162676438,3.78348,2643.1,2642.7,19.54]
[1724162677348,3.78322,2643.3,2642.7,23.324]
[1724162677545,3.78322,2643.3,2642.8,3.78384]
[1724162678318,3.78287,2643.5,2642.9,3.78371]
[1724162678620,3.78287,2643.5,2643.0,19.54]
[1724162679441,3.78317,2643.3,2643.0,19.54]
[1724162679643,3.78329,2643.2,2643.0,19.54]
[1724162679951,3.78343,2643.1,2643.0,19.54]
[1724162680449,7.56686,2643.1,2643.0,19.54]
[1724162681049,3.78343,2643.1,2643.0,19.54]
[1724162681958,3.78297,2643.5,2643.0,19.54]
[1724162682185,3.78343,2643.1,2643.0,19.54]
[1724162682388,3.78429,2642.5,2642.4,19.54]
[1724162682837,7.56858,2642.5,2642.4,19.54]
[1724162683039,10.05948,2642.5,2642.4,19.54]
[1724162683786,11.065428,2642.5,2642.4,19.54]
[1724162683945,11.065428,2642.5,2641.9,7.27]
[1724162683946,3.78481,2642.2,2642.0,19.54]
[1724162684148,3.78481,2642.2,2641.9,19.54]
[1724162684352,3.78495,2642.1,2641.9,19.54]
[1724162684660,3.78481,2642.2,2641.9,19.54]
[1724162685045,3.78501,2642.0,2641.9,19.54]
[1724162685374,3.78481,2642.2,2641.9,19.54]
[1724162685546,3.78501,2642.0,2641.9,19.54]
[1724162686171,7.57002,2642.0,2641.9,19.54]
[1724162687350,0.757002,2642.0,2641.6,7.27]
[1724162687593,3.78553,2641.7,2641.4,19.54]
[1724162687879,3.78529,2641.8,2641.4,19.54]
[1724162688174,7.57072,2641.8,2641.4,19.54]
[1724162688478,3.78548,2641.7,2641.4,19.54]
[1724162688640,3.78572,2641.5,2641.4,19.54]
[1724162689491,3.78558,2641.6,2641.4,19.54]
[1724162690002,3.78572,2641.5,2641.4,19.54]
[1724162690493,3.78558,2641.6,2641.4,19.54]
[1724162690796,3.78572,2641.5,2641.4,19.54]
[1724162691104,7.57144,2641.5,2641.4,19.54]
[1724162692087,3.7863,2641.1,2641.0,7.27]
[1724162692293,7.57288,2641.0,2640.9,19.54]
[1724162694201,3.78622,2641.2,2640.9,19.54]
[1724162694703,2.43,2641.3,2641.0,1.954]
[1724162694906,6.21603,2641.3,2641.0,1.954]
[1724162695081,6.21603,2641.3,2640.9,19.54]
[1724162695971,10.00215,2641.3,2640.9,19.54]
[1724162696217,3.78624,2641.2,2640.9,19.54]
[1724162696511,3.78624,2641.2,2640.7,19.54]
[1724162696714,3.78639,2641.1,2640.7,19.54]
[1724162696891,3.78645,2641.0,2640.7,19.54]
[1724162697091,7.57338,2640.9,2640.7,19.54]
[1724162697292,3.78673,2640.8,2640.7,19.54]
[1724162698024,2.43,2641.3,2640.7,19.54]
[1724162698025,3.78637,2641.1,2640.7,19.54]
[1724162698227,6.2161,2641.3,2640.7,26.00779]
[1724162698455,6.2161,2641.3,2640.7,22.221]
[1724162698629,10.00224,2641.3,2640.7,26.00785]
[1724162699124,3.7861,2641.3,2640.8,3.78672]
[1724162699327,3.7858,2641.5,2640.9,2.979457]
[1724162699522,3.7863,2641.1,2640.9,2.979457]
[1724162700334,3.78611,2641.3,2640.7,26.00784]
[1724162700486,2.3788,2641.6,2640.7,26.00784]
[1724162700487,3.78618,2641.2,2640.7,22.221]
[1724162701120,3.78593,2641.4,2640.9,3.78657]
[1724162701448,2.3788,2641.6,2640.9,3.78657]
[1724162701449,6.16449,2641.6,2641.0,3.78641]
[1724162701583,7.712,2641.8,2641.0,3.78641]
[1724162701584,3.78538,2641.8,2641.0,3.78641]
[1724162701790,5.4565,2641.9,2641.1,19.54]
[1724162701791,3.78575,2641.5,2641.1,19.54]
[1724162702089,3.78612,2641.3,2641.1,19.54]
[1724162702310,3.78611,2641.3,2641.1,19.54]
[1724162702519,7.712,2641.8,2641.1,19.54]
[1724162702520,7.5723,2641.2,2641.1,19.54]
[1724162702787,3.78644,2641.0,2640.5,26.81]
[1724162703018,3.78644,2641.0,2640.6,19.54]
[1724162703532,3.78661,2640.9,2640.6,19.54]
[1724162703948,3.78674,2640.8,2640.7,19.54]
[1724162704747,3.78651,2641.0,2640.7,19.54]
[1724162705246,3.7866,2640.9,2640.7,19.54]
[1724162705691,3.78673,2640.8,2640.7,19.54]
[1724162705890,3.78709,2640.6,2640.2,7.27]
[1724162706089,7.57365,2640.8,2640.2,11.00531554]
[1724162706485,3.78692,2640.7,2640.2,11.00531554]
[1724162706689,3.78679,2640.8,2640.3,3.78743]
[1724162706948,3.78647,2641.0,2640.4,3.7872]
[1724162707090,3.78647,2641.0,2640.3,7.57478]
[1724162707288,3.78658,2640.9,2640.4,1.85800955]
[1724162707523,3.78673,2640.8,2640.4,1.85800955]
[1724162707728,3.78647,2641.0,2640.4,1.85800955]
[1724162707889,3.78662,2640.9,2640.4,1.85800955]
[1724162708349,3.78675,2640.8,2640.4,1.85800955]
[1724162708549,3.78675,2640.8,2640.2,11.00531554]
[1724162708707,3.78696,2640.7,2640.2,7.27]
[1724162708963,3.78709,2640.6,2640.2,7.27]
[1724162709173,3.78696,2640.7,2640.2,7.27]
[1724162709460,9.59464,2640.9,2640.3,3.78735]
[1724162709461,3.78664,2640.9,2640.3,3.78735]
[1724162709638,3.78664,2640.9,2640.4,3.78718]
[1724162709973,3.78664,2640.9,2640.3,6.847085]
[1724162710122,3.78675,2640.8,2640.3,6.847085]
[1724162710759,3.78688,2640.7,2640.3,3.059735]
[1724162710970,7.57336,2640.9,2640.3,6.847155]
[1724162711247,3.78664,2640.9,2640.3,6.847155]
[1724162711447,3.78664,2640.9,2640.4,20.9517155]
[1724162711617,3.78681,2640.8,2640.4,20.9517155]
[1724162711817,3.78681,2640.8,2640.4,19.54]
[1724162712013,3.78658,2640.9,2640.4,19.54]
[1724162712216,3.7864,2641.1,2640.4,19.54]
[1724162712559,3.78609,2641.3,2640.6,3.78692]
[1724162712749,3.78623,2641.2,2640.6,3.78692]
[1724162713057,3.78623,2641.2,2640.7,6.345822]
[1724162713254,3.78577,2641.5,2640.9,3.78648]
[1724162713456,3.78577,2641.5,2641.0,19.54]
[1724162713628,3.78601,2641.4,2641.0,19.54]
[1724162713947,3.78595,2641.4,2641.0,19.54]
[1724162714153,3.78595,2641.4,2641.0,21.18289135]
[1724162714580,3.78564,2641.6,2641.0,19.54]
[1724162714754,3.7863,2641.1,2640.8,19.54]
[1724162715715,7.57271,2641.1,2640.8,19.54]
[1724162715928,3.78644,2641.0,2640.8,19.54]
[1724162716531,3.78658,2640.9,2640.8,19.54]
[1724162716773,3.78692,2640.7,2640.5,19.54]
[1724162717167,7.57389,2640.7,2640.5,19.54]
[1724162717469,3.78701,2640.6,2640.5,19.54]
[1724162717783,7.57334,2640.9,2640.5,19.54]
[1724162717961,3.78676,2640.8,2640.5,19.54]
[1724162718534,3.7869,2640.7,2640.5,19.54]
[1724162719449,3.78701,2640.6,2640.5,19.54]
[1724162719851,3.7869,2640.7,2640.5,19.54]
[1724162720049,7.57335,2640.9,2640.5,19.54]
[1724162720285,2.4727,2641.1,2640.5,26.386894]
[1724162720286,6.25914,2641.1,2640.5,26.386894]
[1724162720450,3.78659,2640.9,2640.6,19.54]
[1724162720660,3.78638,2641.1,2640.6,19.54]
[1724162721186,2.4973,2641.1,2640.6,19.54]
[1724162721492,3.78687,2640.7,2640.6,19.54]
[1724162722048,7.57374,2640.7,2640.6,19.54]
[1724162722249,3.78738,2640.4,2640.2,19.54]
[1724162722455,3.78738,2640.4,2639.8,6.15102]
[1724162722456,7.57562,2640.1,2639.9,19.54]
[1724162722659,3.78777,2640.1,2639.9,19.54]
[1724162724251,7.57505,2640.3,2639.9,19.54]
[1724162724451,3.78752,2640.3,2639.9,19.54]
[1724162724751,3.78787,2640.1,2639.9,19.54]
[1724162724928,7.57574,2640.1,2639.9,19.54]
[1724162725187,3.78787,2640.0,2639.6,19.54]
[1724162726932,3.0,2640.5,2639.6,19.54]
[1724162727156,9.23727,2640.6,2639.6,19.54]
[1724162727355,3.78782,2640.1,2639.7,19.54]
[1724162727857,3.78749,2640.3,2639.7,19.54]
[1724162728058,3.78749,2640.3,2639.8,1.954]
[1724162728258,3.78749,2640.3,2639.7,25.82747]
[1724162728259,3.78749,2640.3,2639.7,19.54]
[1724162728453,3.78775,2640.1,2639.7,19.54]
[1724162729213,3.78765,2640.2,2639.7,23.32821]
[1724162729857,3.7878,2640.1,2639.7,19.54]
[1724162730061,3.78747,2640.3,2639.7,19.54]
[1724162730309,3.78816,2639.8,2639.7,19.54]
[1724162730612,3.78816,2639.8,2639.5,7.27]
[1724162730613,3.78831,2639.7,2639.5,19.54]
[1724162730753,3.78812,2639.9,2639.5,19.54]
[1724162731391,3.78783,2640.1,2639.5,19.54]
[1724162731604,3.78754,2640.3,2639.7,3.7882]
[1724162731805,3.78767,2640.2,2639.8,0.62724]
[1724162732018,0.05943152,2640.2,2639.8,0.62724]
[1724162732522,7.63523602,2640.1,2639.8,0.62724]
[1724162732814,3.78803,2639.9,2639.5,19.54]
[1724162733021,7.57615,2639.9,2639.5,19.54]
[1724162733186,0.05926856,2639.8,2639.5,19.54]
[1724162733589,3.78803,2639.9,2639.5,19.54]
[1724162733903,3.78838,2639.7,2639.5,19.54]
[1724162734092,7.57678,2639.7,2639.5,19.54]
[1724162734294,0.05947765,2639.6,2639.5,19.54]
[1724162735125,3.78829,2639.8,2639.5,19.54]
[1724162735273,0.05928401,2639.6,2639.5,19.54]
[1724162735489,3.78829,2639.8,2639.5,19.54]
[1724162735675,3.78812,2639.9,2639.5,21.872877]
[1724162735911,0.05914074,2639.7,2639.5,25.661437]
[1724162736160,3.78802,2639.9,2639.5,21.872877]
[1724162736342,0.05905165,2639.6,2639.5,21.872877]
[1724162736549,3.78818,2639.8,2639.5,21.872877]
[1724162736684,0.05924529,2639.6,2639.5,21.872877]
[1724162736886,3.78818,2639.8,2639.5,19.54]
[1724162737087,0.05924529,2639.6,2639.5,19.54]
[1724162737302,3.78818,2639.8,2639.5,19.54]
[1724162737516,0.05943892,2639.6,2639.5,25.64649]
[1724162737698,3.78789,2640.0,2639.5,25.64649]
[1724162737891,14.97927,2640.6,2639.5,21.8579]
[1724162737892,0.05924529,2639.6,2639.5,21.8579]
[1724162738219,3.78817,2639.8,2639.5,19.54]
[1724162738429,3.78832,2639.7,2639.5,19.54]
[1724162738621,3.84772437,2639.7,2639.5,19.54]
[1724162739033,3.78845,2639.6,2639.5,19.54]
[1724162739187,3.78873,2639.4,2639.3,19.54]
[1724162739586,0.0588929,2639.4,2639.3,19.54]
[1724162739800,0.0588929,2639.4,2639.3,23.32888]
[1724162740235,3.78817,2639.8,2639.3,23.32888]
[1724162740396,3.78817,2639.8,2639.4,3.059888]
[1724162740596,3.78808,2639.9,2639.4,6.848588]
[1724162740825,0.0590246,2639.7,2639.4,3.059888]
[1724162741029,0.05919112,2639.8,2639.4,3.059888]
[1724162741234,0.05889675,2639.6,2639.3,19.54]
[1724162741436,3.78832,2639.7,2639.3,19.54]
[1724162741635,3.84741768,2639.5,2639.3,19.54]
[1724162741795,3.78861,2639.5,2639.3,19.54]
[1724162742018,3.84744857,2639.4,2639.3,19.54]
[1724162744613,3.84744857,2639.4,2639.1,19.54]
[1724162744958,3.7886,2639.5,2639.2,19.54]
[1724162745121,0.05766944,2639.3,2639.2,19.54]
[1724162745322,3.78874,2639.4,2639.2,19.54]
[1724162745858,3.78888,2639.3,2639.2,19.54]
[1724162746011,6.07869,2639.5,2639.2,19.54]
[1724162746214,6.24425,2639.8,2639.2,21.87293]
[1724162746454,0.05815847,2639.4,2639.3,3.78881]
[1724162746682,3.78825,2639.8,2639.3,3.78881]
[1724162746944,3.78766,2640.2,2639.3,3.78881]
[1724162746945,3.78769,2640.2,2639.5,3.78846]
[1724162747250,0.05653011,2639.7,2639.5,23.32846]
[1724162747573,3.78788,2640.0,2639.5,19.54]
[1724162747709,0.05588527,2639.6,2639.5,22.829643]
[1724162748110,3.78774,2640.1,2639.6,3.78837]
[1724162748433,3.84416036,2640.0,2639.5,22.829643]
[1724162748656,3.84416036,2640.0,2638.9,2.3811]
[1724162748657,2.4271,2639.9,2638.9,2.3811]
[1724162748877,6.21521,2639.9,2639.0,3.78921]
[1724162749038,3.78838,2639.7,2639.0,3.78921]
[1724162749354,0.05584654,2639.6,2638.9,2.3811]
[1724162749549,3.78807,2639.9,2639.3,3.78875]
[1724162749746,0.05542823,2639.5,2639.3,3.78875]
[1724162749928,3.78807,2639.9,2639.3,3.78875]
[1724162750147,0.05553275,2639.4,2639.3,3.78875]
[1724162750543,3.78807,2639.9,2639.3,3.78875]
[1724162750743,0.05553275,2639.4,2639.3,4.546534]
[1724162750935,3.78817,2639.8,2639.3,4.546534]
[1724162751141,0.05553275,2639.4,2639.3,0.757784]
[1724162751462,3.78842,2639.7,2639.3,0.757784]
[1724162751659,3.84435275,2639.4,2638.8,3.0]
[1724162751836,3.78882,2639.4,2638.7,3.78963]
[1724162752193,3.84471162,2639.3,2638.7,3.78963]
[1724162752372,3.78903,2639.2,2638.7,3.78963]
[1724162752658,3.84448134,2639.2,2638.7,4.774369]
[1724162752848,0.05545134,2639.2,2638.7,4.774369]
[1724162753056,0.05545134,2639.2,2638.6,2.2678]
[1724162753057,3.84452134,2639.2,2638.6,2.2678]
[1724162753254,3.84452134,2639.2,2638.5,3.78997]
[1724162753432,7.63366134,2639.2,2638.6,3.78986]
[1724162753635,3.78929,2639.1,2638.5,3.78992]
[1724162753922,0.05521494,2639.0,2638.5,3.78992]
[1724162754132,0.05521494,2639.0,2638.5,4.775336]
[1724162754551,3.78907,2639.2,2638.5,4.775336]
[1724162754552,3.78917,2639.1,2638.5,4.775336]
[1724162754937,0.05527305,2639.0,2638.5,4.775336]
[1724162755546,3.84459305,2639.0,2638.6,19.54]
[1724162755744,3.78947,2638.9,2638.6,19.54]
[1724162756042,3.84478951,2638.9,2638.6,19.54]
[1724162756596,3.78962,2638.8,2638.6,19.54]
[1724162756727,3.78974,2638.7,2638.6,19.54]
[1724162757069,3.78974,2638.7,2638.3,19.54]
[1724162757070,3.8448812,2638.7,2638.3,19.54]
[1724162757332,3.79029,2638.4,2638.2,7.27]
[1724162757826,8.2363,2638.5,2637.5,3.79133]
[1724162757827,3.79073,2638.1,2637.5,3.79133]
[1724162757991,3.79073,2638.1,2637.3,6.4001149]
[1724162757992,3.79092,2637.9,2637.3,6.4001149]
[1724162758308,0.05472624,2637.8,2637.4,3.79159]
[1724162758516,0.05472624,2637.8,2637.4,8.60236349]
[1724162758815,0.05472624,2637.8,2637.4,4.81070349]
[1724162759184,0.05472624,2637.8,2637.5,3.79146]
[1724162759529,0.05463702,2637.7,2637.5,3.79146]
[1724162759702,13.39205,2638.2,2637.4,4.94877052]
[1724162759903,0.05467625,2637.6,2637.5,4.54716354]
[1724162760148,9.60148,2638.2,2637.6,3.79122]
[1724162760414,0.05479997,2638.1,2637.6,3.79122]
[1724162760878,3.84542997,2638.1,2637.5,4.67315354]
[1724162761083,3.84542997,2638.1,2637.5,0.88172354]
[1724162761306,6.26526,2638.0,2637.4,3.79151]
[1724162761535,6.31971153,2638.0,2637.4,3.79151]
[1724162761749,6.31971153,2638.0,2637.3,0.1250649]
[1724162762048,3.79119,2637.7,2637.3,0.1250649]
[1724162762334,3.79114,2637.8,2637.3,0.1250649]
[1724162762335,0.05461155,2637.6,2637.3,0.1250649]
[1724162762598,3.79114,2637.8,2637.3,0.1250649]
[1724162762819,0.0546509,2637.5,2637.3,0.1250649]
[1724162763048,6.26531,2638.0,2637.3,4.68768639]
[1724162763316,6.26531,2638.0,2637.3,3.9168149]
[1724162763478,0.05505059,2637.9,2637.4,3.79154]
[1724162763683,3.79047,2638.2,2637.6,3.79123]
[1724162763946,0.05522893,2638.1,2637.6,3.79123]
[1724162764306,0.05522893,2638.1,2637.4,3.79152]
[1724162764482,0.05522893,2638.1,2637.6,3.79127]
[1724162764686,0.05522893,2638.1,2637.6,3.79124]
[1724162764924,0.05522893,2638.1,2637.5,3.79141]
[1724162765096,0.05522893,2638.1,2637.7,3.7911]
[1724162765297,3.79032,2638.3,2637.7,3.7911]
[1724162765499,3.79032,2638.3,2637.7,3.79108]
[1724162765500,0.05513975,2638.0,2637.7,3.79108]
[1724162765714,3.79032,2638.3,2637.7,3.79108]
[1724162767654,3.79161,2637.4,2637.3,0.1250649]
[1724162767791,3.84554524,2637.4,2637.3,0.1250649]
[1724162768237,7.63715524,2637.4,2637.3,0.1250649]
[1724162768760,3.84554524,2637.4,2637.3,0.1250649]
[1724162769095,0.05393524,2637.4,2637.3,0.1250649]
[1724162769353,3.84554524,2637.4,2637.3,0.1250649]
[1724162769520,0.05393524,2637.4,2637.3,0.1250649]
[1724162770563,3.79155,2637.5,2637.3,0.1250649]
[1724162770706,3.84514539,2637.4,2637.3,0.1250649]
[1724162770904,0.05353539,2637.4,2637.3,0.1110649]
[1724162771845,3.79118,2637.7,2637.3,0.1110649]
[1724162772000,0.05378759,2637.4,2637.3,0.1110649]
[1724162772201,3.79138,2637.6,2637.3,0.1110649]
[1724162772699,0.05216926,2637.5,2637.3,0.1110649]
[1724162772960,3.79161,2637.4,2637.3,0.1110649]
[1724162773125,0.05208001,2637.4,2637.3,0.1110649]
[1724162773333,3.79161,2637.4,2637.3,0.1110649]
[1724162773518,6.71495101,2637.4,2637.3,0.1110649]
[1724162773717,0.05208001,2637.4,2637.3,0.1110649]
[1724162774048,3.79139,2637.6,2637.3,0.1110649]
[1724162774203,0.05194423,2637.4,2637.3,0.1110649]
[1724162774405,3.79161,2637.4,2637.3,0.1110649]
[1724162774766,7.63555208,2637.4,2637.3,0.1110649]
[1724162774936,8.39910729,2637.4,2637.3,0.1110649]
[1724162775405,14.64311729,2637.4,2637.3,0.1110649]
[1724162775933,8.39910729,2637.4,2637.3,0.1110649]
[1724162776137,0.05233208,2637.4,2637.3,0.1110649]
[1724162776344,3.79142,2637.6,2637.3,0.1110649]
[1724162776499,0.04836349,2637.4,2637.3,0.1110649]
[1724162777456,3.79084,2638.0,2637.4,7.58303]
[1724162777757,2.4027,2638.2,2637.3,0.1110649]
[1724162777758,3.791,2637.9,2637.3,0.1110649]
[1724162777975,3.79104,2637.8,2637.3,0.1110649]
[1724162778306,3.79099,2637.9,2637.3,0.1110649]
[1724162778653,3.79106,2637.8,2637.3,0.1110649]
[1724162779237,0.04501918,2637.7,2637.3,0.1110649]
[1724162779433,0.04501918,2637.7,2637.3,0.72767939]
[1724162779634,2.4027,2638.2,2637.3,0.72767939]
[1724162779635,3.7914,2637.6,2637.3,0.1110649]
[1724162779852,3.83669837,2637.6,2637.3,0.1110649]
[1724162780731,3.79161,2637.4,2637.3,0.1110649]
[1724162780937,3.83670096,2637.5,2637.3,0.1110649]
[1724162781139,0.0450617,2637.4,2637.3,0.1110649]
[1724162781435,7.58198,2637.9,2637.3,3.9028149]
[1724162781634,0.04488719,2637.4,2637.3,3.9028149]
[1724162781834,3.79108,2637.8,2637.3,0.1110649]
[1724162782055,0.04488719,2637.4,2637.3,0.1110649]
[1724162782276,3.79108,2637.8,2637.3,0.1110649]
[1724162782455,0.04488719,2637.4,2637.3,0.1110649]
[1724162782632,3.79108,2637.8,2637.3,0.1110649]
[1724162782834,0.04488719,2637.4,2637.3,0.1110649]
[1724162783154,0.04488719,2637.4,2637.3,19.6510649]
[1724162783353,3.79066,2638.1,2637.5,3.79137]
[1724162783517,0.04488719,2637.4,2637.3,3.9027049]
[1724162783719,3.79114,2637.8,2637.3,0.1110649]
[1724162784077,0.04488744,2637.4,2637.3,3.9027849]
[1724162784238,3.79097,2637.9,2637.3,3.9027349]
[1724162784572,0.04524456,2637.8,2637.3,4.53614839]